Cogmind - Beta 11 X6 @@@ ROGUE MODE // 2021.07.30 @ 23:23:22 Player: Runia Result: Destroyed by G-47 Trooper with Particle Gun Performance ------------- Evolutions (1) 500 Regions Visited (3) 600 Robots Destroyed (45) 225 Value Destroyed (1018) 1018 Prototype IDs (1) 20 Alien Tech Used (0) 0 Bonus (24) 24 TOTAL SCORE: 2387 Bonus ------- Follower Combat Kills 47 Friendly Fire -23 Cogmind --------- Core Integrity 0/400 Matter 235/300 Energy 118/265 System Corruption 0% Temperature Cool (9) Movement Walking (120) Location -9/Materials Parts ------- > --- POWER (1) -------- Improved Ion Engine > --- PROPULSION (3) --- Aluminum Leg Aluminum Leg Aluminum Leg > --- UTILITY (3) ------ Cooling System Medium Storage Unit > --- WEAPON (2) ------- Beam Rifle Beam Rifle > --- INVENTORY (10) --- Aluminum Leg Cooling System Cooling System Experimental Sensor Array Light Armor Plating Hardened Light Armor Plating Beam Rifle Light Assault Rifle Peak State ------------ > --- POWER ------------ Ion Engine > --- PROPULSION ------- Aluminum Leg Aluminum Leg > --- UTILITY ---------- Medium Storage Unit Experimental Sensor Array > --- WEAPON ----------- Beam Rifle Beam Cannon > --- INVENTORY -------- Aluminum Leg Cooling System Cooling System Cooling System Cooling System Light Armor Plating Beam Rifle Beam Rifle Beam Rifle Grenade Launcher [Rating: 17] Favorites ----------- Power Light Ion Engine Engine Light Ion Engine Propulsion Aluminum Leg Leg Aluminum Leg Wheel Armored Wheel Utility Medium Storage Unit Device Cooling System Storage Medium Storage Unit Protection Light Armor Plating Weapon Beam Rifle Energy Gun Beam Rifle Energy Cannon Beam Cannon Ballistic Gun Assault Rifle Launcher Grenade Launcher Build | -11 -10 -10 -9 ------- Run | Scr Mat Min Mat Slots Evolved 2 | . . . 2 Power . | . . . . Propulsion 1 | . . . 1 Utility 1 | . . . 1 Weapon . | . . . . Parts Attached 46 | . 15 8 23 Power 6 | . 1 1 4 Engine 6 | . 1 1 4 Core . | . . . . Reactor . | . . . . Propulsion 13 | . 1 3 9 Treads . | . . . . Leg 12 | . 1 3 8 Wheel 1 | . . . 1 Hover . | . . . . Flight . | . . . . Utility 7 | . 2 2 3 Device 5 | . 1 2 2 Storage 1 | . 1 . . Processor . | . . . . Hackware . | . . . . Protection 1 | . . . 1 Artifact . | . . . . Weapon 20 | . 11 2 7 Energy Gun 9 | . 4 . 5 Energy Cannon 2 | . . 1 1 Ballistic Gun 4 | . 3 . 1 Ballistic Cannon . | . . . . Launcher 5 | . 4 1 . Special Weapon . | . . . . Impact Weapon . | . . . . Slashing Weapon . | . . . . Piercing Weapon . | . . . . Special Melee Weapon . | . . . . Unidentified Prototypes 1 | . . 1 . Parts Lost 19 | . 1 4 14 Power 4 | . 1 1 2 Propulsion 6 | . . 1 5 Utility 3 | . . . 3 Weapon 6 | . . 2 4 Highest Loss Streak 9 | . 1 4 9 Average Slot Usage (%) 90 | . 90 98 76 Engine 12 | . 14 13 8 Leg 26 | . 28 28 20 Device 11 | . 5 14 17 Storage 13 | . 14 14 11 Energy Gun 13 | . 16 13 8 Energy Cannon 7 | . . 13 6 Ballistic Gun 4 | . 10 . 1 Naked Turns . | . . . . Heaviest Build 26 | 12 21 23 26 Greatest Support 30 | 20 20 20 30 Greatest Overweight (x) 5 | . 1 2 5 Average Overweight (x) . | . . . . Largest Inventory Capacity 10 | 8 10 10 10 Average Capacity 9 | 8 9 10 10 Most Carried 10 | 6 10 10 10 Average Carried 8 | 6 7 9 7 Final Capacity 10 | 8 10 10 10 Final Carried 10 | 6 10 10 8 Class Distribution -------------------- 91% | Mutant 8% | Scavenger-Mutant Dominant Class ---------------- Mutant | -10/Materials Mutant | -10/Mines Mutant | -9/Materials Resources | -11 -10 -10 -9 ----------- Run | Scr Mat Min Mat Matter Collected 724 | 242 193 183 106 Remotely . | . . . . Salvage Created 1331 | 125 292 127 787 Parts 88 | 4 26 11 47 Haulers Intercepted 1 | . . . 1 Recyclers Shooed 1 | . . . 1 Parts Field Recycled . | . . . . Retrieved Matter . | . . . . Parts Self-Destructed . | . . . . Prevented . | . . . . Kills | -11 -10 -10 -9 ------- Run | Scr Mat Min Mat Combat Hostiles Destroyed 35 | . 10 6 19 Guns 16 | . 5 1 10 Cannons 9 | . . . 9 AOE 10 | . 5 5 . Classes Destroyed 12 | 2 5 1 4 Worker 2 | . 1 1 . Tunneler 3 | 1 1 1 . Hauler 1 | . . . 1 Recycler 1 | 1 . . . Mechanic 1 | . 1 . . Operator 1 | . . . 1 Watcher 4 | . 2 . 2 Swarmer 12 | . 6 1 5 Grunt 17 | . 4 2 11 Duelist 1 | . . . 1 Sentry 2 | . . . 2 Assembled 3 | . . 3 . Best Kill Streak 9 | 2 4 3 9 Combat Bots Only 6 | . 3 3 6 Max Kills in Single Turn 2 | 1 2 2 1 Gunslinging . | . . . . Exploded 2 | . 2 2 . Melee . | . . . . Uniques/NPCs Destroyed . | . . . . Combat | -11 -10 -10 -9 -------- Run | Scr Mat Min Mat Damage Taken 2579 | . 334 469 1776 Core 574 | . 82 77 415 Absorbed by Shields . | . . . . Core Remaining (%) 68 | 100 . 36 . Volleys Fired 150 | 7 43 12 88 Largest 2 | 2 2 2 2 Hottest 116 | 40 112 116 112 Shots Fired 246 | 14 81 20 131 Gun 179 | 14 76 8 81 Cannon 58 | . . 8 50 Launcher 9 | . 5 4 . Special . | . . . . Kinetic 52 | 14 27 . 11 Thermal 185 | . 49 16 120 Explosive 9 | . 5 4 . Electromagnetic . | . . . . Robot Hit Streak 14 | 3 12 4 14 Robot Miss Streak 4 | 2 4 2 3 Penetration Max . | . . . . Secondary Targets 3 | . . . 3 Max Gunslinging Chain 1 | . . . 1 Shots Hit Robots 164 | 6 50 12 96 Core Hits 70 | 3 20 15 32 Critical Kills . | . . . . Critical Parts Destroyed . | . . . . Critical Strikes 11 | . 1 . 10 Burn 10 | . 1 . 9 Destroy 1 | . . . 1 Melee Attacks . | . . . . Impact . | . . . . Slashing . | . . . . Piercing . | . . . . Sneak Attacks . | . . . . Combat Hostiles . | . . . . Follow-up Attacks . | . . . . Damage Inflicted 3055 | 79 1057 535 1384 Guns 1591 | 79 681 44 787 Cannons 683 | . . 86 597 Explosions 764 | . 376 388 . Melee . | . . . . Ramming 17 | . . 17 . Kinetic 368 | 79 239 . 50 Thermal 1906 | . 442 130 1334 Explosive 764 | . 376 388 . Electromagnetic . | . . . . Impact . | . . . . Slashing . | . . . . Piercing . | . . . . Highest Corruption . | . . . . Average Corruption . | . . . . Corruption Purged . | . . . . Overload Shots . | . . . . Overflow Damage 54 | . 23 9 22 Projectiles 22 | . . . 22 Explosions 32 | . 23 9 . Melee . | . . . . Knockbacks . | . . . . Impact . | . . . . Kinetic . | . . . . Secondary . | . . . . Self-Inflicted Damage 178 | . 76 102 . Shots 6 | . 2 4 . Rammed . | . . . . Targets Rammed 2 | . . 2 . Kicked 2 | . . 2 . Crushed . | . . . . Highest Temperature 150 | 6 150 . 74 Average Temperature 34 | 6 42 . 17 Received Heat Transfer 896 | . 72 101 723 Siege Activations . | . . . . Robots Corrupted . | . . . . Combat Hostiles . | . . . . Parts Fried . | . . . . Impact Corruptions . | . . . . Robots Melted 1 | . . . 1 Combat Hostiles . | . . . . Parts Melted 14 | . 3 2 9 Heat Transferred 5268 | . 1161 296 3811 Parts Sabotaged . | . . . . Parts Stolen . | . . . . Parts Stripped . | . . . . Power Chain Reactions . | . . . . Missiles Intercepted . | . . . . Alert | -11 -10 -10 -9 ------- Run | Scr Mat Min Mat Peak Influence 298 | 10 192 175 298 Initial 6 | . 6 . . Average 76 | 7 76 59 115 Maximum Alert Level 1 | . . . 1 Low Security (%) 96 | 100 100 100 83 Level 1 3 | . . . 16 Level 2 . | . . . . Level 3 . | . . . . Level 4 . | . . . . Level 5 . | . . . . High Security . | . . . . Max Security . | . . . . Squads Dispatched 4 | . 2 . 2 Investigation 2 | . 2 . . Extermination . | . . . . Reinforcement 2 | . . . 2 Assault . | . . . . Garrison . | . . . . Intercept . | . . . . Construction Impeded . | . . . . Haulers Reinforced . | . . . . Active Scanning Responses . | . . . . Cargo Convoy Interrupts . | . . . . Stealth | -11 -10 -10 -9 --------- Run | Scr Mat Min Mat Distress Signals 7 | . 1 . 6 Communications Jammed . | . . . . Distress Signals . | . . . . Times Spotted 80 | . 17 27 36 Peak Tracking Total 15 | . 3 15 7 Tactical Retreats 1 | . 1 . . Traps | -11 -10 -10 -9 ------- Run | Scr Mat Min Mat Traps Triggered 1 | . 1 . . Indirectly . | . . . . Trap Hack Attempts . | . . . . Triggered . | . . . . Disarmed . | . . . . Reprogrammed . | . . . . Reused . | . . . . Traps Extracted . | . . . . Installed . | . . . . Triggered . | . . . . Machines | -11 -10 -10 -9 ---------- Run | Scr Mat Min Mat Machines Disabled 3 | . 1 1 1 Max in Single Turn 1 | . 1 1 1 Machines Sabotaged . | . . . . Garrisons Compromised . | . . . . Overloaded Fab Kills . | . . . . Fab Network Shutdowns . | . . . . Hacking | -11 -10 -10 -9 --------- Run | Scr Mat Min Mat Machines Accessed 4 | . 3 . 1 Terminals 3 | . 2 . 1 Fabricators . | . . . . Repair Stations . | . . . . Recycling Units 1 | . 1 . . Scanalyzers . | . . . . Garrison Access . | . . . . Total Hacks 12 | . 9 . 3 Successful 7 | . 6 . 1 Failed 5 | . 3 . 2 Catastrophic 1 | . . . 1 Database Lockouts . | . . . . Manual 12 | . 10 . 2 Terminals 11 | . 8 . 3 Fabricators . | . . . . Repair Stations . | . . . . Recycling Units 1 | . 1 . . Scanalyzers . | . . . . Garrison Access . | . . . . Terminal Hacks 4 | . 3 . 1 Part Schematic 1 | . 1 . . Level Access Points 1 | . . . 1 Terminal Index 1 | . 1 . . Unreport Threat 1 | . 1 . . Fabricator Hacks . | . . . . Repair Station Hacks . | . . . . Recycling Unit Hacks . | . . . . Scanalyzer . | . . . . Garrison Access Hacks . | . . . . Unauthorized Hacks 3 | . 3 . . Terminals 2 | . 2 . . Botnet 2 | . 2 . . Fabricators . | . . . . Repair Stations . | . . . . Recycling Units 1 | . 1 . . Tunnel 1 | . 1 . . Scanalyzers . | . . . . Garrison Access . | . . . . Data Cores Recovered 1 | . . . 1 Used . | . . . . Hacking Detections 3 | . 2 . 1 Full Trace Events . | . . . . Feedback Events . | . . . . Feedback Blocked . | . . . . Robot Schematics Acquired . | . . . . Robots Built . | . . . . Matter . | . . . . Time . | . . . . Total Robot Build Rating . | . . . . Part Schematics Acquired 1 | . 1 . . Parts Built . | . . . . Matter . | . . . . Time . | . . . . Total Part Build Rating . | . . . . Parts Repaired . | . . . . Time . | . . . . Parts Recycled . | . . . . Recycled Matter . | . . . . Retrieved Matter . | . . . . Retrieved Components . | . . . . Parts Scanalyzed . | . . . . Part Schematics Acquired . | . . . . Parts Damaged . | . . . . Bothacking | -11 -10 -10 -9 ------------ Run | Scr Mat Min Mat Used RIF Installer . | . . . . Robots Hacked . | . . . . Non-combat . | . . . . Combat . | . . . . Robot Hacks Applied . | . . . . Relay Couplers Released . | . . . . Robots Rewired . | . . . . Allies Hacked . | . . . . Hacks Repelled . | . . . . Allies | -11 -10 -10 -9 -------- Run | Scr Mat Min Mat Total Allies 4 | . . 4 . Largest Group 4 | . . 4 . Highest-Rated Group 71 | . . 71 . Highest-Rated Ally 31 | . . 31 . Total Orders . | . . . . Ally Attacks 14 | . . 14 . Total Damage 204 | . . 204 . Kills 3 | . . 3 . Allies Corrupted . | . . . . Allies Melted . | . . . . Intel | -11 -10 -10 -9 ------- Run | Scr Mat Min Mat Robot Analysis Total . | . . . . Derelict Logs Recovered 3 | . . 3 . Drone Launches . | . . . . Drone Recoveries . | . . . . Exploration | -11 -10 -10 -9 ------------- Run | Scr Mat Min Mat Turns Passed 2484 | 37 852 1065 530 Spaces Moved 1158 | 14 465 516 163 Core 5 | . . . 5 Treads . | . . . . Legs 1153 | 14 465 516 158 Wheels . | . . . . Hover . | . . . . Flight . | . . . . Fastest Speed 120 | 120 120 120 120 Average Speed 167 | 120 143 195 154 Slowest Speed 300 | 120 200 280 300 Overloaded Moves . | . . . . Propulsion Burnouts . | . . . . Robots Hopped . | . . . . Cave-ins Triggered . | . . . . Exploration Rate (%) 44 | 3 66 86 23 Regions Visited 3 Branch Regions 1 Pre-discovered Areas 3 | . 1 2 . Known Exits Taken . | . . . . Unknown Exits Taken 3 | 1 1 1 . Scrap Searched 1 | . . 1 . Spaces Dug . | . . . . Terrain Destroyed 88 | . 47 41 . Melee . | . . . . Projectile . | . . . . AOE 88 | . 47 41 . Terrain Rammed . | . . . . Walls Destroyed . | . . . . Machines Disabled . | . . . . Actions | -11 -10 -10 -9 --------- Run | Scr Mat Min Mat Total 1458 | 20 571 552 315 Wait 51 | . 22 10 19 Move 1155 | 13 464 515 163 Hop . | . . . . Pick Up 33 | . 14 2 17 Fast Attach 5 | . 3 . 2 Attach 20 | . 1 1 18 Detach . | . . . . Swap 21 | . 11 7 3 Drop 21 | . 13 3 5 Fire 150 | 7 43 12 88 Melee . | . . . . Ram . | . . . . Kick 2 | . . 2 . Crush . | . . . . Escape Stasis . | . . . . Rewire . | . . . . Trap . | . . . . Miscellaneous . | . . . . Route ------- -11/Scrapyard -10/Materials (discovered 2 exits: *Mat / [*Min]) -10/Mines -9/Materials (discovered 3 exits: Mat x3) History --------- Turn | Location | Event 23 | -11/Scrapyard | Discovered new exit (range 3) 38 | -11/Scrapyard | Entered Materials 344 | -10/Materials | Build established: Mutant 435 | -10/Materials | Discovered new exit (range 8) 825 | -10/Materials | Discovered new exit (range 12) 890 | -10/Materials | Entered Mines 893 | -10/Mines | Escorted by a lone wolf Derelict 913 | -10/Mines | Learned location of Storage (-7) 1044 | -10/Mines | Joined a pair of Derelicts in attacking an 0b10 outpost 1200 | -10/Mines | Found a damaged Exp. Sensor Array with a note attached 1207 | -10/Mines | Found Prototype Device 1208 | -10/Mines | Identified Exp. Sensor Array 1375 | -10/Mines | Assisted by bots powering up and referring to "LRC-V3" 1776 | -10/Mines | Discovered new exit (range 5) 1883 | -10/Mines | Assembled infested the area 1914 | -10/Mines | Core integrity fell below 50% 1945 | -10/Mines | Lost 4 parts (1p1n2w) 1955 | -10/Mines | Entered Materials 1955 | -9/Materials | Evolved 2 slots: Propulsion x1, Utility x1 2094 | -9/Materials | Lost 9 parts (1p3n2u3w) 2102 | -9/Materials | Core integrity fell below 50% 2339 | -9/Materials | Identified exit to Materials 2412 | -9/Materials | Core integrity fell below 20% 2468 | -9/Materials | Lost 3 parts (1p2n) 2485 | -9/Materials | Destroyed by G-47 Trooper with Particle Gun Last Messages --------------- G-34 Mercenary heat damages Ion Engine. G-34 Mercenary destroyed. K-01 Serf collects debris. R-06 Scavenger collects Sensor Array. K-01 Serf collects debris. R-06 Scavenger collects Signal Interpreter. K-01 Serf collects debris. Acquired Aluminum Leg. R-06 Scavenger collects Heat Shielding. K-01 Serf collects debris. Acquired Aluminum Leg. R-06 Scavenger collects Heat Sink. K-01 Serf collects debris. Acquired Aluminum Leg. K-01 Serf collects debris. Lgt. Ion Engine melted. S-10 Pest destroyed. K-01 Serf collects debris. Sensor Array destroyed. K-01 Serf collects debris. Map ----- +----------------------------------------------------+ | ?????????????????????????????????????????????????? | | ?????????????????????????????????????????????????? | | ??????????????????? ????????????????????????????? | | ??????????????????? #??????????????????????????? | | ??????????????????? #??????????????????????????? | | ??????????????????? #??????????????????????????? | | ??????????????????#% #??????????????????????????? | | ?###+###??????????# #####+####?????????????????? | | ## #??????????# ?????????????????? | | ############ ?????????????????? | | ^ [ ??????????????????? | | ^[= *%= #???????????????????? | | ?# ^ """%^ T """ #???????????????????? | | ??# """! "T" !% # ??????????????????? | | ??# """ " "* + ??????????????????? | | ??# *%* =!%= #???????????????????? | | ??# !![!*%=! #???????????????????? | | ??# =%=%!! """" #???????????????????? | | ??# % ###########% !%"""" #???????????????????? | | ?## ##????????## % """" #???????????????????? | | ?# #?????????# %k #???????????????????? | | ?# #?????????#% g #???????????????????? | | ?# +?????????# k"""" #???????????????????? | | ?# #?????????# """" #???????????????????? | | ## #?????????# """"gg ##??????????????????? | | ### ##?????????# @ #??????????????????? | | # #??????????# #??????????????????? | | " # #?????????+ #??????????????????? | | " + #?????????## #??????????????????? | | # #??????????## #??????????????????? | | % # #???????????# ###########??????????????????? | | # #???????????# #????????????????????????????? | | ### #????########/#????????????????????????????? | | #?# #????# #????????????????????????????? | | ###?# #????# #????????????????????????????? | | #???# #????# #????????????????????????????? | | #???# #????# ! #????????????????????????????? | | #???# #????# #????????????????????????????? | | #???# #????# #????????????????????????????? | | ##### #????# #????????????????????????????? | | #????? ! #????????????????????????????? | | #####+####???? ??????????????????????????????? | | ## #######+##??????????????????????????????? | | ## + #########??????????????????????? | | ## " " % ### # #??????????????????????? | | # "R" #?# # """ #??????????????????????? | | # """ #?# + """ #??????????????????????? | | ############+## # """ #??????????????????????? | | ????# # # #??????????????????????? | | ????# % =# ####+####??????????????????????? | +----------------------------------------------------+ Best States ------------- Heat Dissipation 50 Energy Generation 12 Energy Capacity 265 Matter Stores 300 Matter Capacity 300 Sight Range 16 Robot Scan Range 14 Terrain Scan Density 10 Armor Coverage 150 Evasion (%) 55 Item Schematics ----------------- Lrg. Storage Unit | -10/Materials | Hacked Robot Schematics ------------------ None Fabricated ------------ Nothing Alien Tech Used ----------------- None Achievements -------------- None Challenges ------------ None Game ------ Seed MomentumHackingStabilizer Manual? 0 Play Time 00:17:36 Cumulative 248.1 hours Start 2021.07.30 @ 23:01:30 End 2021.07.30 @ 23:23:22 Sessions 1 Manual Loads 0 Difficulty Rogue Special Mode None Game No. 301 Rogue 301 Adventurer 0 Explorer 0 Win Type - Total 3 Types 3/0/0/0/0/0/0/0/0 Lore% 64 Gallery% 81 Achievement% 60 Wizard Run 0 Options --------- ASCII 0 Keyboard 0 Movement Mouse Keybinds 1 Fullscreen 2 Font 24/Smallcaps Map View 76x50 Tactical HUD 1 Map Filters NONE Filters NONE Steam 1 RUN: 31f9d15c-a0e1-444a-8628-2a1b5ed0076b